bitfinex/quotes_BTCUSD_20240918
["timestamp","ask_amount","ask_price","bid_price","bid_amount"]
[1726689622495,0.83084,60180.0,60179.0,0.0040439]
[1726689623471,1.163176,60180.0,60179.0,0.0040439]
[1726689623700,1.263176,60180.0,60179.0,0.0040439]
[1726689623929,1.28925286,60180.0,60179.0,0.0040439]
[1726689624167,0.93084,60180.0,60179.0,0.0040439]
[1726689624401,0.24925431,60189.0,60179.0,0.0040439]
[1726689624627,0.166168,60180.0,60179.0,0.0040439]
[1726689624853,0.332326,60182.0,60179.0,0.0040439]
[1726689624854,0.166164,60182.0,60180.0,0.00456798]
[1726689625087,0.332297,60187.0,60179.0,0.02106609]
[1726689625325,0.24925431,60199.0,60181.0,0.00456798]
[1726689625549,0.24925431,60199.0,60179.0,0.02106609]
[1726689625550,0.24925431,60191.0,60182.0,0.03579791]
[1726689625781,0.166141,60190.0,60185.0,0.166152]
[1726689626022,0.332285,60190.0,60186.0,0.05388309]
[1726689626254,0.99683505,60194.0,60182.0,0.03579791]
[1726689626255,0.498478,60183.0,60182.0,0.03579791]
[1726689626489,0.166162,60182.0,60179.0,0.0040439]
[1726689626720,0.332272,60192.0,60182.0,0.0771]
[1726689626949,0.166157,60184.0,60182.0,0.0771]
[1726689627197,0.99683505,60186.0,60182.0,0.0771]
[1726689627198,0.03022727,60185.0,60183.0,0.05852209]
[1726689627432,0.332293,60188.0,60183.0,0.06309007]
[1726689627655,0.02607156,60188.0,60184.0,0.332312]
[1726689627878,0.02607156,60188.0,60185.0,0.04735021]
[1726689628121,0.02607156,60188.0,60183.0,0.05852209]
[1726689628354,0.00415396,60187.0,60186.0,0.00456798]
[1726689628584,0.00415396,60187.0,60182.0,0.0771]
[1726689628585,0.17030396,60187.0,60183.0,0.166159]
[1726689628854,0.17030396,60187.0,60186.0,0.00456798]
[1726689628855,0.830742,60187.0,60186.0,0.00456798]
[1726689629112,0.02607156,60188.0,60182.0,0.0771]
[1726689629337,0.498454,60186.0,60185.0,0.005]
[1726689629564,0.498504,60180.0,60179.0,0.0040439]
[1726689629786,0.166168,60180.0,60179.0,0.0040439]
[1726689630017,0.2753145,60193.0,60179.0,0.02106629]
[1726689630251,0.166155,60185.0,60183.0,0.000822]
[1726689630474,0.166156,60185.0,60183.0,0.000822]
[1726689630699,0.498471,60184.0,60183.0,0.000822]
[1726689630943,0.166157,60184.0,60183.0,0.000822]
[1726689631198,0.166157,60184.0,60183.0,0.01962753]
[1726689631425,0.166154,60186.0,60183.0,0.01962753]
[1726689631643,0.166152,60186.0,60183.0,0.01962753]
[1726689631880,0.166157,60184.0,60183.0,0.01962753]
[1726689632120,0.166157,60184.0,60183.0,0.000822]
[1726689632121,1.59956804,60184.0,60183.0,0.000822]
[1726689632373,1.65564249,60184.0,60183.0,0.000822]
[1726689632628,1.28917345,60184.0,60183.0,0.000822]
[1726689633095,1.62148745,60184.0,60183.0,0.000822]
[1726689633320,1.69461493,60184.0,60183.0,0.001822]
[1726689633545,1.69661493,60184.0,60183.0,0.001822]
[1726689633774,1.69661493,60184.0,60183.0,0.000822]
[1726689634011,1.69661493,60184.0,60183.0,0.001822]
[1726689634012,1.72661493,60184.0,60183.0,0.001822]
[1726689634257,1.72461493,60184.0,60183.0,0.000822]
[1726689634772,1.36230093,60184.0,60183.0,0.001822]
[1726689635072,1.36230093,60184.0,60183.0,0.000822]
[1726689635073,1.263099,60184.0,60183.0,0.000822]
[1726689635499,0.930785,60184.0,60183.0,0.000822]
[1726689635728,1.263099,60184.0,60183.0,0.000822]
[1726689635963,0.830785,60184.0,60183.0,0.000822]
[1726689636202,1.525413,60184.0,60183.0,0.000822]
[1726689636433,1.95654547,60184.0,60183.0,0.00093789]
[1726689636662,2.07230967,60184.0,60183.0,0.00093789]
[1726689636888,1.485512,60180.0,60179.0,0.0040439]
[1726689637117,1.487512,60180.0,60179.0,0.0040439]
[1726689637447,1.56056999,60180.0,60179.0,0.0040439]
[1726689637690,1.65856999,60180.0,60179.0,0.0040439]
[1726689637923,1.61359297,60180.0,60179.0,0.0040439]
[1726689638157,1.61159297,60180.0,60179.0,0.0040439]
[1726689638439,1.67428382,60180.0,60179.0,0.0050439]
[1726689638702,1.67428382,60180.0,60171.0,0.0002]
[1726689638703,1.59571,60172.0,60171.0,0.0002]
[1726689638929,1.88121092,60172.0,60171.0,0.0002]
[1726689639185,2.28527394,60172.0,60171.0,0.0002]
[1726689639466,2.42576152,60172.0,60171.0,0.0002]
[1726689639700,2.42576152,60172.0,60161.0,0.0039427]
[1726689639701,1.495957,60162.0,60161.0,0.0039427]
[1726689639919,2.17704097,60162.0,60161.0,0.0039427]
[1726689640398,2.60674014,60162.0,60161.0,0.0039427]
[1726689640851,2.08319925,60162.0,60161.0,0.0039427]
[1726689641306,1.57511189,60162.0,60161.0,0.0039427]
[1726689641533,1.57511189,60162.0,60161.0,0.0049427]
[1726689641534,1.58311189,60162.0,60161.0,0.0049427]
[1726689641984,1.29761097,60162.0,60161.0,0.0049427]
[1726689642221,1.91554689,60162.0,60161.0,0.0049427]
[1726689642904,1.90754689,60162.0,60161.0,0.0039427]
[1726689643358,1.92154689,60162.0,60161.0,0.0039427]
[1726689643588,1.90754689,60162.0,60161.0,0.0039427]
[1726689643818,1.92154689,60162.0,60161.0,0.0039427]
[1726689644303,1.92154689,60162.0,60146.0,0.000821]
[1726689644304,1.92154689,60162.0,60112.0,0.06]
[1726689644305,0.2697,60131.0,60112.0,0.06]
[1726689644595,0.49896,60125.0,60124.0,0.24923775]
[1726689644808,0.19632,60125.0,60124.0,0.24923775]
[1726689645032,0.19632,60125.0,60116.0,0.24923775]
[1726689645033,0.03,60125.0,60117.0,0.00332684]
[1726689645298,0.03,60125.0,60124.0,0.0048129]
[1726689645520,0.332617,60130.0,60117.0,0.16966584]
[1726689645521,0.03,60120.0,60118.0,0.06796536]
[1726689645743,0.332617,60130.0,60117.0,0.0001724]
[1726689645744,0.03,60118.0,60117.0,0.0001724]
[1726689646207,0.196339,60118.0,60117.0,0.0001724]
[1726689646439,0.03,60118.0,60117.0,0.0001724]
[1726689646717,0.362679,60118.0,60117.0,0.0001724]
[1726689646971,1.196376,60118.0,60117.0,0.0001724]
[1726689647201,0.031,60118.0,60117.0,0.0001724]
[1726689647434,0.03,60118.0,60117.0,0.0001724]
[1726689647680,0.03,60118.0,60117.0,0.03345904]
[1726689647681,0.031,60118.0,60117.0,0.03345904]
[1726689647907,0.031,60118.0,60117.0,0.0001724]
[1726689647908,0.03,60118.0,60117.0,0.0001724]
[1726689648357,0.031,60118.0,60117.0,0.0001724]
[1726689648577,0.03515883,60118.0,60117.0,0.0001724]
[1726689648804,0.031,60118.0,60117.0,0.1665144]
[1726689649273,0.031,60118.0,60117.0,0.0001724]
[1726689649523,0.031,60118.0,60117.0,0.01890487]
[1726689649763,0.03,60118.0,60117.0,0.01890487]
[1726689650024,0.032,60118.0,60117.0,0.0001724]
[1726689650686,0.032,60118.0,60117.0,0.1665144]
[1726689650693,0.032,60118.0,60117.0,0.0001724]
[1726689650954,0.002,60118.0,60117.0,0.4991984]
[1726689651219,0.03,60124.0,60123.0,0.498976]
[1726689651466,0.03,60124.0,60123.0,0.2260926]
[1726689651467,0.27951137,60124.0,60123.0,0.2260926]
[1726689651710,0.03,60124.0,60123.0,0.2260926]
[1726689652191,0.03,60133.0,60132.0,0.1663]
[1726689652443,0.03,60124.0,60123.0,0.498976]
[1726689652977,0.03,60124.0,60123.0,0.166325]
[1726689653223,0.03,60124.0,60120.0,0.0987]
[1726689653462,0.03,60124.0,60121.0,0.332661]
[1726689653709,0.332619,60129.0,60120.0,0.0987]
[1726689653710,0.03,60123.0,60120.0,0.0987]
[1726689653953,0.03,60119.0,60118.0,0.1665114]
[1726689654208,0.03,60119.0,60118.0,0.4991904]
[1726689654493,0.03,60119.0,60110.0,0.000822]
[1726689654494,1.296492,60112.0,60110.0,0.000822]
[1726689654769,1.91470492,60112.0,60110.0,0.000822]
[1726689655050,2.27741692,60112.0,60110.0,0.000822]
[1726689655337,2.33861716,60112.0,60111.0,0.0011]
[1726689655819,1.859943,60111.0,60110.0,0.000822]
[1726689656076,2.1520345,60112.0,60083.0,0.166434]
[1726689656077,0.198411,60092.0,60083.0,0.166434]
[1726689656324,0.20257197,60092.0,60080.0,0.33300738]
[1726689656583,0.196411,60092.0,60080.0,0.00012138]
[1726689656848,0.03,60092.0,60085.0,0.332857]
[1726689657067,0.03,60092.0,60080.0,0.00012138]
[1726689657068,0.56150786,60092.0,60080.0,0.00012138]
[1726689657333,1.20104084,60092.0,60091.0,0.0049582]
[1726689657596,1.48654176,60092.0,60091.0,0.0002]
[1726689657911,0.862057,60092.0,60091.0,0.0002]
[1726689658123,0.196411,60092.0,60091.0,0.0002]
[1726689658375,0.20257197,60092.0,60091.0,0.0002]
[1726689658624,1.19688,60092.0,60091.0,0.0002]
[1726689659334,1.19788,60092.0,60091.0,0.0002]
[1726689659595,1.19688,60092.0,60091.0,0.0002]
[1726689660129,1.529703,60092.0,60091.0,0.0002]
[1726689660454,2.07164157,60092.0,60091.0,0.0002]
[1726689660958,0.91682492,60081.0,60080.0,0.00012138]
[1726689661218,0.91682492,60081.0,60056.0,0.000822]
[1726689661219,0.691474,60063.0,60062.0,0.0062003]
[1726689661606,0.691474,60063.0,60056.0,0.000822]
[1726689661607,0.297608,60057.0,60056.0,0.000822]
[1726689661874,0.630832,60032.0,60031.0,0.0002]
[1726689662106,0.630832,60032.0,60011.0,0.0002]
[1726689662107,0.629391,60025.0,60024.0,0.0398622]
[1726689662381,0.629391,60025.0,60011.0,0.0002]
[1726689662382,1.47886642,60025.0,60011.0,0.0002]
[1726689662678,0.28550092,60030.0,60011.0,0.0001]
[1726689662679,0.66989157,60012.0,60011.0,0.0001]
[1726689662977,1.68172449,60012.0,60011.0,0.0001]
[1726689663538,1.71312449,60012.0,60011.0,0.0001]
[1726689663542,1.71312449,60012.0,60003.0,0.05837034]
[1726689663543,1.71312449,60012.0,60003.0,0.02503834]
[1726689663544,0.56,60004.0,60003.0,0.02503834]
[1726689663549,0.74449,60001.0,60000.0,0.9575806]
[1726689663833,0.74449,60001.0,59965.0,0.09876644]
[1726689663834,0.0293,59964.0,59963.0,0.03578322]
[1726689664105,0.0293,59964.0,59959.0,0.07407483]
[1726689664106,0.24787789,59963.0,59959.0,0.07407483]
[1726689664355,1.24869489,59963.0,59962.0,0.05874294]
[1726689664627,1.24869489,59963.0,59913.0,0.02293755]
[1726689664628,0.3921,59952.0,59913.0,0.02293755]
[1726689664867,0.0792,59939.0,59920.0,0.99880975]
[1726689665123,0.166894,59918.0,59917.0,0.00112925]
[1726689665357,0.99880975,59950.0,59917.0,0.00112925]
[1726689665358,0.28550092,59938.0,59919.0,0.06]
[1726689665619,0.03,59955.0,59917.0,0.05617685]
[1726689665620,0.00814701,59940.0,59920.0,0.0550476]
[1726689665870,0.023,59936.0,59917.0,0.00112925]
[1726689666167,0.05722372,59939.0,59917.0,0.00112925]
[1726689666168,0.166894,59918.0,59917.0,0.00112925]
[1726689666445,0.00814701,59940.0,59917.0,0.0541039]
[1726689666734,0.333689,59936.0,59923.0,0.03]
[1726689666987,0.99880975,59950.0,59944.0,0.06]
[1726689667260,0.99880975,59950.0,59933.0,0.03]
[1726689667503,0.99880975,59943.0,59941.0,0.06]
[1726689667754,0.02618126,59955.0,59945.0,0.06]
[1726689668077,0.02618126,59955.0,59950.0,0.06]
[1726689668275,0.02618126,59955.0,59944.0,0.03]
[1726689668532,0.02618126,59955.0,59934.0,0.03]
[1726689668533,0.166814,59947.0,59934.0,0.03]
[1726689668886,0.00417051,59954.0,59926.0,0.209]
[1726689668887,0.44646893,59945.0,59935.0,0.99880975]
[1726689668888,0.333689,59936.0,59935.0,0.99880975]
[1726689669109,0.44646893,59945.0,59910.0,0.00012924]
[1726689669110,0.44646893,59945.0,59923.0,0.0599]
[1726689669375,0.166853,59933.0,59928.0,0.99880975]
[1726689669629,0.166853,59933.0,59929.0,0.00574474]
[1726689669630,0.00417208,59933.0,59929.0,0.00574474]
[1726689669871,1.12499074,59944.0,59910.0,0.00012924]
[1726689669872,0.99880975,59984.0,59967.0,0.03]
[1726689670095,0.99880975,59984.0,59935.0,0.03]
[1726689670096,0.99880975,59963.0,59937.0,0.333681]
[1726689670346,0.99880975,59963.0,59933.0,0.0771]
[1726689670347,0.23371957,59962.0,59933.0,0.0771]
[1726689670621,0.23371957,59962.0,59900.0,0.03]
[1726689670622,0.03,59950.0,59938.0,0.00700882]
[1726689670863,0.5,59967.0,59911.0,0.0602]
[1726689670864,0.05150205,59949.0,59939.0,0.00630219]
[1726689671132,0.166833,59940.0,59939.0,0.00630219]
[1726689671365,0.166833,59940.0,59911.0,0.0002]
[1726689671366,0.05600205,59940.0,59911.0,0.0002]
[1726689671628,0.03,59937.0,59911.0,0.0002]
[1726689671870,0.44646893,59941.0,59911.0,0.0002]
[1726689671871,0.1,59935.0,59919.0,0.03]
[1726689672118,0.99880975,59930.0,59923.0,0.002]
[1726689672338,0.02618798,59933.0,59923.0,0.002]
[1726689672564,0.333583,59956.0,59912.0,0.333817]
[1726689672565,0.99880975,59932.0,59930.0,0.002]
[1726689672807,0.99880975,59932.0,59920.0,0.002]
[1726689672808,1.00033066,59932.0,59920.0,0.002]
[1726689673037,1.00033066,59932.0,59912.0,0.06]
[1726689673038,1.00033066,59932.0,59917.0,0.002]
[1726689673364,1.00033066,59932.0,59923.0,0.06]
[1726689673365,0.00152091,59932.0,59923.0,0.06]
[1726689673587,0.99880975,59931.0,59926.0,0.03]
[1726689673819,0.99880975,59931.0,59926.0,0.06]
[1726689674042,0.99880975,59931.0,59927.0,0.00630219]
[1726689674579,0.99880975,59931.0,59926.0,0.06]
[1726689674580,0.99880975,59937.0,59928.0,0.00630219]
[1726689674799,0.99880975,59931.0,59928.0,0.002]
[1726689675041,0.99880975,59929.0,59923.0,0.062]
[1726689675264,0.99880975,59937.0,59919.0,0.03]
[1726689675265,0.00152091,59928.0,59919.0,0.03]
[1726689675492,0.05115364,59942.0,59919.0,0.06]
[1726689675785,0.99880975,59941.0,59939.0,0.06]
[1726689676056,0.99880975,59941.0,59940.0,0.168833]
[1726689676337,0.99880975,59941.0,59936.0,0.333685]
[1726689676338,0.99880975,59941.0,59936.0,0.002]
[1726689676568,0.99880975,59954.0,59945.0,0.06]
[1726689676818,0.99880975,59954.0,59953.0,0.002]
[1726689677075,0.99464316,59960.0,59948.0,0.002]
[1726689677297,0.333523,59966.0,59948.0,0.002]
[1726689677517,0.333523,59966.0,59953.0,0.002]
[1726689677518,0.333525,59966.0,59953.0,0.002]
[1726689677772,0.333563,59959.0,59948.0,0.002]
[1726689677994,0.99880975,59969.0,59948.0,0.002]
[1726689677995,0.99880975,59968.0,59948.0,0.002]
[1726689678228,0.02617531,59957.0,59949.0,0.002]
[1726689678462,0.99880975,59968.0,59949.0,0.002]
[1726689678463,0.99880975,59968.0,59949.0,0.062]
[1726689678688,0.99880975,59968.0,59919.0,0.032]
[1726689678689,0.99880975,59956.0,59951.0,0.002]
[1726689678914,0.166751,59970.0,59953.0,0.06]
[1726689679140,0.99880975,59962.0,59953.0,0.06]
[1726689679370,0.16675,59970.0,59954.0,0.006101]
[1726689679596,1.33229575,59973.0,59954.0,0.006101]
[1726689679597,0.99880975,59967.0,59959.0,0.002]
[1726689679821,0.99880975,59967.0,59960.0,0.0168782]
[1726689680069,0.99880975,59973.0,59959.0,0.002]
[1726689680070,0.99880975,59973.0,59959.0,0.062]
[1726689680296,0.333419,59985.0,59956.0,0.333575]
[1726689680297,0.99880975,59981.0,59971.0,0.002]
[1726689680852,0.99880975,59981.0,59972.0,0.333488]
[1726689681033,0.333337,60000.0,59981.0,0.002]
[1726689681266,0.333337,60000.0,59982.0,0.166716]
[1726689681267,0.99880975,59986.0,59982.0,0.166716]
[1726689681494,0.99880975,60001.0,59993.0,0.002]
[1726689681730,0.99880975,60001.0,60000.0,0.499999]
[1726689681956,0.0032332,60017.0,60005.0,0.16665]
[1726689682191,0.0032332,60017.0,59997.0,0.002]
[1726689682421,0.0032332,60017.0,59994.0,0.0813]
[1726689682422,0.05242534,60012.0,59995.0,0.06]
[1726689682656,0.0032332,60017.0,60005.0,0.166651]
[1726689682880,0.0032332,60017.0,60003.0,0.06]
[1726689683110,1.00319987,60017.0,60009.0,0.002]
[1726689683337,1.00319987,60017.0,60009.0,0.168641]
[1726689683605,1.00319987,60017.0,60009.0,0.56732291]
[1726689683606,0.0032332,60017.0,60009.0,0.56732291]
[1726689683846,0.0032332,60017.0,60009.0,0.6240552]
[1726689683847,0.99996667,60016.0,60009.0,0.6240552]
[1726689684078,0.99996667,60015.0,60011.0,0.002]
[1726689684315,0.0032332,60017.0,60016.0,0.89511]
[1726689684548,0.0032332,60017.0,60016.0,0.0953]
[1726689684794,0.0032332,60017.0,60016.0,0.2672213]
[1726689685012,0.0032332,60017.0,60016.0,0.32726993]
[1726689685227,0.0032332,60017.0,60016.0,0.66051393]
[1726689685682,0.0032332,60017.0,60016.0,0.99375793]
[1726689685907,0.0032332,60017.0,60016.0,0.66051393]
[1726689686356,0.24993127,60029.0,60025.0,0.002]
[1726689686569,0.24993127,60029.0,60026.0,0.00525134]
[1726689686792,0.24993127,60036.0,60031.0,0.002]
[1726689687012,0.24993127,60036.0,60031.0,0.23368504]
[1726689687272,0.007818,60045.0,60031.0,0.23368504]
[1726689687273,0.02614168,60038.0,60031.0,0.14490504]
[1726689687505,0.007818,60045.0,60031.0,0.08290504]
[1726689687506,0.24993127,60035.0,60031.0,0.08290504]
[1726689687774,0.24993127,60035.0,60031.0,0.00510504]
[1726689687995,0.24993127,60035.0,60025.0,0.002]
[1726689687996,0.16657,60035.0,60025.0,0.002]
[1726689688221,0.333128,60037.0,60026.0,0.25487029]
[1726689688494,0.007818,60045.0,60030.0,0.06]
[1726689688679,0.24993127,60036.0,60031.0,0.002]
[1726689689156,0.24993127,60036.0,60031.0,0.00693902]
[1726689689371,0.24993127,60036.0,60031.0,0.002]
[1726689689372,0.166567,60036.0,60031.0,0.002]
[1726689689587,0.166572,60034.0,60031.0,0.00693902]
[1726689689816,0.166568,60036.0,60030.0,0.03]
[1726689690044,0.24993127,60039.0,60031.0,0.00493902]
[1726689690283,0.333132,60037.0,60031.0,0.00693902]
[1726689690504,0.24993127,60039.0,60031.0,0.00693902]
[1726689690724,0.166573,60034.0,60030.0,0.06]
[1726689690945,0.166573,60034.0,60012.0,0.333262]
[1726689690946,0.834535,60032.0,60031.0,0.00493902]
[1726689691204,0.834535,60032.0,60007.0,0.098]
[1726689691205,0.001648,60032.0,60017.0,0.0841]
[1726689691423,0.333227,60019.0,60018.0,0.00493902]
[1726689691642,0.1,60027.0,60016.0,0.03]
[1726689691869,0.1,60027.0,60013.0,0.032]
[1726689691870,0.499849,60018.0,60017.0,0.00493902]
[1726689692377,0.16662,60017.0,60016.0,0.03]
[1726689692591,0.16662,60017.0,60013.0,0.032]
[1726689692592,0.166627,60014.0,60013.0,0.002]
[1726689692811,0.166627,60014.0,60013.0,0.06]
[1726689693039,0.166624,60016.0,60013.0,0.06]
[1726689693261,0.333246,60016.0,60013.0,0.062]
[1726689693489,0.333236,60018.0,60013.0,0.062]
[1726689693779,0.026147,60025.0,60019.0,0.03]
[1726689694010,0.334805,60032.0,60019.0,0.03]
[1726689694011,0.166608,60021.0,60020.0,0.00518279]
[1726689694248,1.00133976,60032.0,60025.0,0.002]
[1726689694473,0.2498938,60031.0,60025.0,0.002]
[1726689694701,0.2498938,60031.0,60023.0,0.06]
[1726689694702,0.333175,60029.0,60028.0,0.002]
[1726689694924,0.333188,60026.0,60025.0,0.002]
[1726689695149,0.16659,60028.0,60027.0,0.002]
[1726689695410,0.001648,60032.0,60027.0,0.002]
[1726689695649,0.166585,60030.0,60027.0,0.002]
[1726689695875,0.001648,60032.0,60031.0,0.062]
[1726689696102,0.001648,60032.0,60031.0,0.561741]
[1726689696324,0.001648,60032.0,60031.0,0.06704064]
[1726689697240,0.168225,60032.0,60031.0,0.00504064]
[1726689697464,0.334805,60032.0,60028.0,0.06]
[1726689697705,0.499758,60029.0,60028.0,0.06]
[1726689697944,0.001648,60032.0,60028.0,0.06]
[1726689697945,0.001648,60032.0,60031.0,0.062]
[1726689698190,0.001648,60032.0,60031.0,0.23301139]
[1726689698620,0.001648,60032.0,60031.0,0.89933339]
[1726689698861,0.001648,60032.0,60031.0,0.56617239]
[1726689699073,0.001648,60032.0,60031.0,0.12614757]
[1726689699290,0.001648,60032.0,60031.0,0.06643139]
[1726689699511,0.50138,60032.0,60031.0,0.06443139]
[1726689699729,0.834535,60032.0,60031.0,0.00443139]
[1726689700047,0.834535,60032.0,60023.0,0.06]
[1726689700048,0.4998,60024.0,60023.0,0.06]
[1726689700209,0.4998,60024.0,60010.0,0.333273]
[1726689700210,0.0099237,60032.0,60010.0,0.06]
[1726689700466,0.83318,60011.0,60010.0,0.06]
[1726689700699,0.83318,60011.0,59998.0,0.333343]
[1726689700700,0.166688,59992.0,59991.0,0.0771]
[1726689700949,0.1,59995.0,59983.0,0.03]
[1726689701190,0.1,59995.0,59970.0,0.0598]
[1726689701191,0.44646893,59990.0,59970.0,0.0598]
[1726689701419,0.16673,59977.0,59976.0,0.0598]
[1726689701639,0.500191,59977.0,59976.0,0.0598]
[1726689701869,0.02615718,59992.0,59976.0,0.0598]
[1726689702092,0.166719,59981.0,59980.0,0.03]
[1726689702317,0.02615718,59992.0,59984.0,0.0618]
[1726689702318,0.333383,59991.0,59984.0,0.0618]
[1726689702540,0.333383,59991.0,59971.0,0.333493]
[1726689702541,0.166701,59988.0,59987.0,0.0598]
[1726689702778,0.166701,59988.0,59983.0,0.002]
[1726689702779,0.02615718,59992.0,59991.0,0.0598]
[1726689703028,0.02615718,59992.0,59982.0,0.333427]
[1726689703029,0.333342,59999.0,59993.0,0.0618]
[1726689703230,0.99965012,60000.0,59993.0,0.0598]
[1726689703231,0.99965012,59994.0,59993.0,0.0598]
[1726689703472,0.333343,59999.0,59993.0,0.0598]
[1726689703721,0.166681,59995.0,59994.0,0.002]
[1726689703959,0.166673,59998.0,59994.0,0.002]
[1726689704181,0.166675,59997.0,59994.0,0.002]
[1726689704403,0.00812756,60016.0,59993.0,0.0598]
[1726689704404,0.500049,59994.0,59993.0,0.03]
[1726689704634,0.99965012,60005.0,59996.0,0.0598]
[1726689704862,0.99965012,60005.0,60001.0,0.002]
[1726689704863,0.166661,60002.0,60001.0,0.002]
[1726689705101,0.166663,60001.0,60000.0,0.002]
[1726689705571,0.1,60010.0,60000.0,0.002]
[1726689705801,0.166655,60005.0,60000.0,0.002]
[1726689706015,0.333307,60005.0,60000.0,0.002]
[1726689706245,0.166654,60005.0,60000.0,0.002]
[1726689706526,0.1,60013.0,60002.0,0.30979375]
[1726689706743,0.1,60013.0,60002.0,0.0598]
[1726689706984,0.24999375,60030.0,60002.0,0.0598]
[1726689706985,1.09987502,60020.0,60005.0,0.166651]
[1726689707205,1.09987502,60020.0,60006.0,0.06464008]
[1726689707206,0.166632,60013.0,60006.0,0.06464008]
[1726689707431,0.166626,60015.0,60007.0,0.04746491]
[1726689707654,0.99987502,60020.0,60012.0,0.0598]
[1726689707655,0.333228,60019.0,60012.0,0.0598]
[1726689707885,0.333244,60016.0,60012.0,0.0598]
[1726689708121,0.166622,60016.0,60015.0,0.002]
[1726689708561,0.166622,60016.0,60012.0,0.0598]
[1726689708562,0.166623,60016.0,60012.0,0.0618]
[1726689708792,0.02614804,60018.0,60015.0,0.002]
[1726689708793,0.19276504,60018.0,60015.0,0.002]
[1726689709034,0.02614804,60018.0,60016.0,0.00478892]
[1726689709262,0.02614804,60018.0,60016.0,0.06458892]
[1726689709508,0.99987502,60033.0,60027.0,0.0598]
[1726689709734,0.99987502,60033.0,60031.0,0.22638]
[1726689710180,1.00152302,60032.0,60031.0,0.06455658]
[1726689710403,0.001648,60032.0,60031.0,0.0598]
[1726689710636,0.001648,60032.0,60031.0,0.08702041]
[1726689710860,0.001648,60032.0,60031.0,0.06638171]
[1726689711777,0.001648,60032.0,60031.0,0.0618]
[1726689712005,0.001648,60032.0,60031.0,0.06632166]
[1726689712459,0.001648,60032.0,60031.0,0.23290166]
[1726689712682,0.001648,60032.0,60031.0,0.06632166]
[1726689712938,0.001648,60032.0,60031.0,0.9591632]
[1726689713173,0.001648,60032.0,60031.0,0.95583163]
[1726689713645,0.168225,60032.0,60031.0,0.08542166]
[1726689713896,0.001648,60032.0,60031.0,0.14522166]
[1726689715137,0.001648,60032.0,60031.0,0.31180166]
[1726689715422,0.001648,60032.0,60031.0,0.00652166]
[1726689715663,0.50138,60032.0,60031.0,0.00452166]
[1726689715914,1.16769,60032.0,60031.0,0.00452166]
[1726689716149,1.16769,60032.0,60011.0,0.166635]
[1726689716150,0.499791,60025.0,60024.0,0.0598]
[1726689716386,0.001648,60032.0,60014.0,0.0598]
[1726689716615,0.166613,60019.0,60018.0,0.30966882]
[1726689716849,0.49984,60019.0,60018.0,0.0598]
[1726689717091,0.3693531,60032.0,60018.0,0.0598]
[1726689717092,0.001648,60032.0,60018.0,0.0598]
[1726689717339,0.333205,60024.0,60018.0,0.0598]
[1726689717586,0.333191,60026.0,60019.0,0.0044443]
[1726689717815,0.44646893,60027.0,60013.0,0.0598]
[1726689718052,0.166633,60012.0,60011.0,0.002]
[1726689718298,0.166638,60010.0,60009.0,0.002]
[1726689718569,0.333266,60012.0,60009.0,0.002]
[1726689718570,0.166634,60012.0,60011.0,0.0598]
[1726689718815,0.166634,60012.0,60009.0,0.002]
[1726689718816,0.333246,60016.0,60009.0,0.0618]
[1726689719059,0.99962514,60022.0,60010.0,0.0598]
[1726689719361,0.166638,60010.0,60009.0,0.0618]
[1726689719607,0.166647,60007.0,60006.0,0.002]
[1726689719861,0.166647,60007.0,60005.0,0.08]
[1726689719862,0.499983,60002.0,60001.0,0.002]
[1726689720108,0.333312,60004.0,60003.0,0.0598]
[1726689720109,0.333311,60004.0,60003.0,0.0598]
[1726689720357,0.99962514,60012.0,60003.0,0.0598]
[1726689720599,0.99962514,60010.0,60003.0,0.0598]
[1726689720842,0.99962514,60010.0,59997.0,0.002]
[1726689720843,0.333311,60004.0,59997.0,0.002]
[1726689721077,0.333311,60004.0,60003.0,0.03]
[1726689721313,0.833277,60004.0,60003.0,0.03]
[1726689721549,0.02615206,60010.0,59996.0,0.002]
[1726689721550,0.166675,59997.0,59996.0,0.002]
[1726689721827,0.16668,59995.0,59994.0,0.002]
[1726689722067,0.166677,59996.0,59994.0,0.01615]
[1726689722312,0.166677,59996.0,59995.0,0.0598]
[1726689722800,0.02615431,60001.0,59995.0,0.0598]
[1726689723041,0.02615431,60001.0,59997.0,0.0598]
[1726689723270,0.02615431,60001.0,59999.0,0.0598]
[1726689723505,0.16646546,60000.0,59999.0,0.0598]
[1726689723746,0.35948131,60001.0,59994.0,0.01615]
[1726689723747,0.166677,59996.0,59994.0,0.01615]
[1726689723985,0.02615431,60001.0,59994.0,0.01615]
[1726689724242,0.52614431,60001.0,60000.0,0.03]
[1726689724490,0.58328084,60014.0,60000.0,0.0598]
[1726689724491,0.25002084,60014.0,60000.0,0.0598]
[1726689724729,0.25002084,60002.0,60000.0,0.00465746]
[1726689724982,0.25002084,60002.0,59994.0,0.01615]
[1726689724983,0.16668,59995.0,59994.0,0.002]
[1726689725232,0.333327,60001.0,59970.0,0.78079093]
[1726689725233,0.44646893,59999.0,59983.0,0.0598]
[1726689725524,0.44646893,59999.0,59976.0,0.077]
[1726689725525,0.1,59998.0,59981.0,0.0298]
[1726689725729,0.1,59998.0,59976.0,0.107]
[1726689725730,0.1,59998.0,59986.0,0.0598]
[1726689725964,0.166677,59996.0,59995.0,0.0598]
[1726689726196,0.99988335,60007.0,59995.0,0.0598]
[1726689726442,0.99988335,60007.0,60002.0,0.002]
[1726689726677,1.49982635,60007.0,60006.0,0.002]
[1726689726915,0.334922,60011.0,60006.0,0.002]
[1726689727164,0.00165,60011.0,60010.0,0.0598]
[1726689727871,0.501558,60011.0,60010.0,0.0598]
[1726689728107,0.168286,60011.0,60010.0,0.0618]
[1726689728839,0.02614962,60022.0,60010.0,0.0618]
[1726689728840,0.99988335,60034.0,60030.0,0.0598]